Cogmind - Beta 16 *** ADVENTURER MODE // 2025.11.11 @ 20:49:43 Player: SAWA Result: Self-destructed Performance ------------- Evolutions (0) 0 Regions Visited (3) 600 Robots Destroyed (14) 70 Value Destroyed (509) 509 Prototype IDs (0) 0 Alien Tech Used (0) 0 Bonus (0) 0 TOTAL SCORE: 1179 Bonus ------- None Cogmind --------- Core Integrity 190/250 Matter 300/300 Energy 250/250 System Corruption 0% Temperature Cool (0) Movement Treading (160) Location -9/Scraptown Parts ------- > --- POWER (1) -------- Ion Engine > --- PROPULSION (2) --- Light Treads Light Treads > --- UTILITY (2) ------ Small Storage Unit ECM Suite > --- WEAPON (2) ------- Beam Cannon Grenade Launcher > --- INVENTORY (8) ---- Ion Engine Light Treads Compact Wheel Large Battery (200) Large Matter Pod (150) EM Pulse Gun EM Pulse Gun Hammer Peak State ------------ > --- POWER ------------ Ion Engine > --- PROPULSION ------- Light Treads Light Treads > --- UTILITY ---------- Small Storage Unit ECM Suite > --- WEAPON ----------- EM Pulse Gun EM Pulse Gun > --- INVENTORY -------- Ion Engine Ion Engine Compact Wheel [Rating: 7] Favorites ----------- Power Ion Engine Engine Ion Engine Propulsion Light Treads Treads Light Treads Wheel Compact Wheel Utility Small Storage Unit Device ECM Suite Storage Small Storage Unit Weapon EM Pulse Gun Energy Gun EM Pulse Gun Energy Cannon Beam Cannon Launcher Grenade Launcher Build | -11 -10 -10 -9 ------- Run | Yrd Mat Sub Scr Slots Evolved . | . . . . Power . | . . . . Propulsion . | . . . . Utility . | . . . . Weapon . | . . . . Parts Attached 11 | 3 6 2 . Power 2 | 1 1 . . Engine 2 | 1 1 . . Core . | . . . . Reactor . | . . . . Propulsion 3 | . 3 . . Treads 2 | . 2 . . Leg . | . . . . Wheel 1 | . 1 . . Hover . | . . . . Flight . | . . . . Utility 2 | 1 1 . . Device 1 | . 1 . . Storage 1 | 1 . . . Processor . | . . . . Hackware . | . . . . Protection . | . . . . Artifact . | . . . . Weapon 4 | 1 1 2 . Energy Gun 2 | 1 1 . . Energy Cannon 1 | . . 1 . Ballistic Gun . | . . . . Ballistic Cannon . | . . . . Launcher 1 | . . 1 . Special Weapon . | . . . . Impact Weapon . | . . . . Slashing Weapon . | . . . . Piercing Weapon . | . . . . Special Melee Weapon . | . . . . Unidentified Prototypes . | . . . . Parts Lost . | . . . . Power . | . . . . Propulsion . | . . . . Utility . | . . . . Weapon . | . . . . Highest Loss Streak . | . . . . To Critical Strikes . | . . . . Average Backups 7 | 3 6 8 8 Power 1 | . 1 1 1 Propulsion 1 | 2 1 2 2 Utility 1 | . 1 2 2 Weapon 2 | . 2 3 3 Tool/Special . | . . . . Unused Backups 7 | . 2 . 5 Power 2 | . 1 . 1 Propulsion 1 | . . . 1 Utility 3 | . 1 . 2 Weapon 1 | . . . 1 Tool/Special . | . . . . Average Slot Usage (%) 98 | . 97 100 100 Engine 14 | . 14 14 14 Treads 27 | . 27 28 28 Device 12 | . 12 14 14 Storage 14 | . 14 14 14 Energy Gun 20 | . 27 9 . Energy Cannon 2 | . . 5 14 Launcher 4 | . . 13 14 Peak Build Rating 7 | 3 7 7 7 Average Rating 6 | 2 6 7 7 On Entrance 4 | . 3 7 7 Avg Prop Armor Cover (%) . | . . . . Naked Turns . | . . . . Heaviest Build 18 | 12 16 18 18 Greatest Support 40 | 3 40 40 40 Greatest Overweight (x) 3 | 3 . . . Average Overweight (x) . | 2 . . . Largest Inventory Capacity 8 | 8 8 8 8 Average Capacity 7 | 7 8 8 8 Most Carried 8 | 5 8 8 8 Average Carried 7 | 3 6 8 8 Final Capacity 8 | 8 8 8 8 Final Carried 8 | 5 8 8 8 Class Distribution -------------------- 100% | Mutant Dominant Class ---------------- Mutant | -10/Materials Mutant | -10/Subcaves Mutant | -9/Scraptown Resources | -11 -10 -10 -9 ----------- Run | Yrd Mat Sub Scr Matter Collected 630 | 230 258 84 58 Remotely . | . . . . Salvage Created 462 | . 361 101 . Parts 25 | . 20 5 . Haulers Intercepted . | . . . . Recyclers Shooed . | . . . . Parts Field Recycled . | . . . . Retrieved Matter . | . . . . Parts Self-Destructed . | . . . . Prevented . | . . . . Parts Restored . | . . . . Kills | -11 -10 -10 -9 ------- Run | Yrd Mat Sub Scr Combat Hostiles Destroyed 12 | . 7 5 . Guns 6 | . 5 1 . AOE 6 | . 2 4 . Classes Destroyed 3 | . 2 1 . Watcher 2 | . 2 . . Grunt 7 | . 7 . . Subdweller 5 | . . 5 . Best Kill Streak 3 | . 3 2 . Combat Bots Only 3 | . 3 2 . Max Kills in Single Turn 2 | . 2 2 . Gunslinging . | . . . . Exploded 2 | . 2 2 . Melee . | . . . . Uniques/NPCs Destroyed . | . . . . Combat | -11 -10 -10 -9 -------- Run | Yrd Mat Sub Scr Hostile Shots Fired 43 | . 23 20 . Missed 19 | . 13 6 . Hits 24 | . 10 14 . Projectile 24 | . 10 14 . Damage Taken 380 | . 139 241 . Core 60 | . 13 47 . Absorbed by Shields . | . . . . Ignored by Resistances 109 | . 43 66 . Core Remaining (%) 100 | 100 . . . Volleys Fired 34 | . 18 16 . Largest 2 | . 2 2 . Hottest 90 | . 80 90 . Shots Fired 63 | . 36 27 . Gun 51 | . 36 15 . Cannon 1 | . . 1 . Launcher 11 | . . 11 . Special . | . . . . Kinetic . | . . . . Thermal 1 | . . 1 . Explosive 11 | . . 11 . Electromagnetic 51 | . 36 15 . Robot Hit Streak 24 | . 16 24 . Robot Miss Streak 2 | . 2 . . Penetration Max . | . . . . Secondary Targets . | . . . . Shots Hit Robots 36 | . 28 8 . Core Hits 29 | . 18 11 . Critical Kills . | . . . . Critical Parts Destroyed . | . . . . Critical Strikes 1 | . 1 . . Corrupt 1 | . 1 . . Melee Attacks . | . . . . Impact . | . . . . Slashing . | . . . . Piercing . | . . . . Sneak Attacks . | . . . . Combat Hostiles . | . . . . Follow-up Attacks . | . . . . Damage Inflicted 1197 | . 537 660 . Guns 511 | . 421 90 . Cannons 18 | . . 18 . Explosions 668 | . 116 552 . Melee . | . . . . Ramming . | . . . . Kinetic . | . . . . Thermal 134 | . 116 18 . Explosive 552 | . . 552 . Electromagnetic 511 | . 421 90 . Impact . | . . . . Slashing . | . . . . Piercing . | . . . . Highest Corruption . | . . . . Average Corruption . | . . . . Corruption Purged . | . . . . Corruption Blocked . | . . . . Overload Shots . | . . . . Overflow Damage . | . . . . Projectiles . | . . . . Explosions . | . . . . Melee . | . . . . Knockbacks . | . . . . Impact . | . . . . Kinetic . | . . . . Secondary . | . . . . Self-Inflicted Damage 32 | . 32 . . Shots 1 | . 1 . . Rammed . | . . . . Targets Rammed . | . . . . Kicked . | . . . . Crushed . | . . . . Highest Temperature 90 | . 90 . . Average Temperature 34 | . 34 . . Received Heat Transfer 135 | . 81 54 . Siege Activations . | . . . . Martial Activations . | . . . . Shielding Activations . | . . . . Robots Disrupted . | . . . . Combat Hostiles . | . . . . Robots Corrupted . | . . . . Combat Hostiles . | . . . . Parts Fried 1 | . 1 . . Impact Corruptions . | . . . . Robots Melted . | . . . . Combat Hostiles . | . . . . Parts Melted . | . . . . Heat Transferred 187 | . 150 37 . Parts Sabotaged . | . . . . Parts Stolen . | . . . . Parts Stripped . | . . . . Power Chain Reactions 1 | . 1 . . Alert | -11 -10 -10 -9 ------- Run | Yrd Mat Sub Scr Maximum Alert Level . | . . . . Low Security (%) 100 | 100 100 . . Level 1 . | . . . . Level 2 . | . . . . Level 3 . | . . . . Level 4 . | . . . . Level 5 . | . . . . High Security . | . . . . Max Security . | . . . . Peak Influence 73 | . 73 . . Initial . | . . . . Average 11 | . 12 . . Influence Increases 217 | . 217 . . Destroy 0b10 Robot/C 140 | . 140 . . Destroy 0b10 Robot/NC 10 | . 10 . . Destroy Leader 44 | . 44 . . Successful Hack 20 | . 20 . . Destroy Structure 3 | . 3 . . Influence Decreases 217 | . 217 . . Time Decay 217 | . 217 . . Squads Dispatched 1 | . 1 . . Investigation 1 | . 1 . . Extermination . | . . . . Reinforcement . | . . . . Assault . | . . . . Garrison . | . . . . Intercept . | . . . . Searches Triggered . | . . . . Construction Impeded . | . . . . Haulers Reinforced . | . . . . Active Scanning Responses . | . . . . Cargo Convoy Interrupts . | . . . . Stealth | -11 -10 -10 -9 --------- Run | Yrd Mat Sub Scr Distress Signals 1 | . 1 . . Communications Jammed . | . . . . Distress Signals . | . . . . Times Spotted 20 | . 15 5 . Peak Tracking Total 3 | . 3 2 . Tactical Retreats 4 | . 4 . . ECM-based Alert Blocks 6 | . 6 . . Traps | -11 -10 -10 -9 ------- Run | Yrd Mat Sub Scr Traps Triggered 1 | . 1 . . Indirectly . | . . . . Trap Hack Attempts . | . . . . Triggered . | . . . . Disarmed . | . . . . Reprogrammed . | . . . . Reused . | . . . . Traps Extracted . | . . . . Installed . | . . . . Triggered . | . . . . Machines | -11 -10 -10 -9 ---------- Run | Yrd Mat Sub Scr Machines Disabled . | . . . . Max in Single Turn . | . . . . Machines Repaired . | . . . . Machines Dismantled . | . . . . Machines Sabotaged . | . . . . Overloaded Fab Kills . | . . . . Hacking | -11 -10 -10 -9 --------- Run | Yrd Mat Sub Scr Machines Accessed 2 | . 2 . . Terminals 2 | . 2 . . Fabricators . | . . . . Repair Stations . | . . . . Recycling Units . | . . . . Scanalyzers . | . . . . Garrison Access . | . . . . Total Hacks 4 | . 4 . . Successful 3 | . 3 . . Failed 1 | . 1 . . Catastrophic . | . . . . Database Lockouts . | . . . . Manual 2 | . 2 . . Terminals 4 | . 4 . . Fabricators . | . . . . Repair Stations . | . . . . Recycling Units . | . . . . Scanalyzers . | . . . . Garrison Access . | . . . . Terminal Hacks 1 | . 1 . . Branch Access Points 1 | . 1 . . Fabricator Hacks . | . . . . Repair Station Hacks . | . . . . Recycling Unit Hacks . | . . . . Scanalyzer . | . . . . Garrison Access Hacks . | . . . . Unauthorized Hacks 2 | . 2 . . Terminals 2 | . 2 . . Botnet 2 | . 2 . . Fabricators . | . . . . Repair Stations . | . . . . Recycling Units . | . . . . Scanalyzers . | . . . . Garrison Access . | . . . . Data Cores Recovered . | . . . . Used . | . . . . Hacking Detections 2 | . 2 . . Full Trace Events 1 | . 1 . . Feedback Events . | . . . . Feedback Blocked . | . . . . Robot Schematics Acquired . | . . . . Robots Built . | . . . . Authchips . | . . . . Time . | . . . . Total Robot Build Rating . | . . . . Part Schematics Acquired . | . . . . Parts Built . | . . . . Authchips . | . . . . Time . | . . . . Total Part Build Rating . | . . . . Part Studies Acquired . | . . . . Parts Repaired . | . . . . Time . | . . . . Parts Recycled . | . . . . Recycled Matter . | . . . . Retrieved Matter . | . . . . Retrieved Components . | . . . . Parts Scanalyzed . | . . . . Part Schematics Acquired . | . . . . Parts Damaged . | . . . . Bothacking | -11 -10 -10 -9 ------------ Run | Yrd Mat Sub Scr Used RIF Installer . | . . . . Robots Hacked . | . . . . Non-combat . | . . . . Combat . | . . . . Robot Hacks Applied . | . . . . Relay Couplers Released . | . . . . Fabnet Peak Effective % . | . . . . Robots Rewired . | . . . . Allies Hacked . | . . . . Hacks Repelled . | . . . . Allies | -11 -10 -10 -9 -------- Run | Yrd Mat Sub Scr Total Allies . | . . . . Largest Group . | . . . . Highest-Rated Group . | . . . . Highest-Rated Ally . | . . . . Total Orders . | . . . . Ally Attacks . | . . . . Total Damage . | . . . . Kills . | . . . . Allies Corrupted . | . . . . Allies Melted . | . . . . Intel | -11 -10 -10 -9 ------- Run | Yrd Mat Sub Scr Active Infowar (turns) 1237 | . 757 344 136 ECM 1237 | . 757 344 136 Robot Analysis Total . | . . . . Derelict Logs Recovered 1 | . . 1 . Drone Launches . | . . . . Drone Recoveries . | . . . . Exploration | -11 -10 -10 -9 ------------- Run | Yrd Mat Sub Scr Turns Passed 1424 | 90 854 344 136 Spaces Moved 699 | 44 385 187 83 Core 44 | 44 . . . Treads 655 | . 385 187 83 Legs . | . . . . Wheels . | . . . . Hover . | . . . . Flight . | . . . . Fastest Speed 50 | 50 160 160 160 Average Speed 161 | 187 160 160 160 Slowest Speed 200 | 200 160 160 160 Overloaded Moves . | . . . . Propulsion Burnouts . | . . . . Robots Hopped . | . . . . Potential Cave-ins . | . . . . Cave-ins Triggered . | . . . . Exploration Rate (%) 19 | 4 44 17 14 Regions Visited 3 Branch Regions 2 Pre-discovered Areas 1 | . . 1 . Known Exits Taken . | . . . . Unknown Exits Taken 3 | 1 1 1 . Scrap Searched 2 | . . . 2 Spaces Dug . | . . . . Terrain Destroyed 50 | . 2 48 . Melee . | . . . . Projectile . | . . . . AOE 50 | . 2 48 . Terrain Rammed . | . . . . Walls Destroyed . | . . . . Machines Disabled . | . . . . Actions | -11 -10 -10 -9 --------- Run | Yrd Mat Sub Scr Total 928 | 51 587 204 86 Wait 170 | . 167 . 3 Move 696 | 43 384 186 83 Hop . | . . . . Pick Up 13 | 5 8 . . Fast Attach 4 | 3 1 . . Attach 3 | . 3 . . Detach . | . . . . Swap 5 | . 3 2 . Drop 3 | . 3 . . Fire 34 | . 18 16 . Melee . | . . . . Ram . | . . . . Kick . | . . . . Crush . | . . . . Escape Stasis . | . . . . Rewire . | . . . . Trap . | . . . . Miscellaneous . | . . . . Route ------- -11/Scrapyard -10/Materials (discovered 4 exits: [*Mat] / *Min x2 / [*Sub]) -10/Subcaves -9/Scraptown History --------- Turn | Location | Event 33 | -11/Scrapyard | Discovered new exit (range 15) 91 | -11/Scrapyard | Entered Materials 101 | -10/Materials | Discovered new exit (range 10) 207 | -10/Materials | Discovered new exit (range 16) 278 | -10/Materials | Discovered new exit (range 4) 304 | -10/Materials | Build established: Mutant 428 | -10/Materials | Identified exit to Mines 945 | -10/Materials | Entered Subcaves 946 | -10/Subcaves | Approached by a straggling Scientist 970 | -10/Subcaves | Shifting Twisted Machinery released Sub. Optics 1283 | -10/Subcaves | Scientist uncovered a shortcut to Scraptown 1289 | -10/Subcaves | Entered Scraptown 1425 | -9/Scraptown | Self-destructed Last Messages --------------- [Achievement: Nice Directions, Buddy] 01286_ 03-QQ4(c) exits level. LOCATION=UNKNOWN GOAL=ESCAPE 01289_ LOCAL NARROWCAST: Welcome to Scraptown. Please remember it is vital to either disarm yourself or ensure you are corruption-free before entering the area. Use the C-Scrubber! You bear full responsibility for any potential consequences of non-compliance. Enjoy your stay. 01295_ ANNOUNCEMENT: Unclassified nonregistered visitor in outer Scraptown, temporarily sealing HQ gate. 01307_ ANNOUNCEMENT: To all visitors: Defacing our home will be considered a hostile act, tread lightly and respect boundaries. 01313_ Searching scrap... 01313_ Found EM Shotgun. 01313_ Found Lgt. Armor Plating. 01313_ Found Arm. Wheel. 01313_ Found 69 Matter. 01314_ Acquired 58 matter. 01336_ Searching scrap... 01336_ Found Particle Gun. 01336_ Found Med. Storage Unit. 01336_ Found 63 Matter. Map ----- +----------------------------------------------------+ | ????????????????????????????????????? | | ????????????????????????????????????? | | ????????????????????????????????????? | | ????????????????????????????????????? | | ????????????????????????????????????? | | ????????????????????????????????????? | | ????????????????????????????????????? | | ????????????????????????????????????? | | ????????????????????????????????????? | | ????????????????????????????????????? | | ???????????? ??????????????????????? | | ???????????? ??????????????????????? | | ???????????? "?????????????????????? | | ???????????? "?????????????????????? | | ???????????? "?????????????????????? | | ????????????g "?????????????????????? | | ???????????? "?????????????????????? | | ????????#### "?????????????????????? | | ???""""""""" "?????????????????????? | | ???""""""" " #??? #????????????????? | | ???? " " #### ##???????????????? | | ????"" " """" ""???????????????? | | ???"" " ? "#??????????????? | | ???"""""" " j" "" "#??????????????? | | ??""" " " "" "#??????????????? | | ????""" "@ " "#??????????????? | | ???""" " " ""#??????????????? | | ???""""" " " """""#??????????????? | | ???""" " """""""#??????????????? | | ???"" " " """"""????????????????? | | ???""""" " ######????????????????? | | ??""" " #?????????????????????? | | ???""""" " #????""???????????????? | | ??""" "" " #??? "#??????????????? | | ?#"" #?? "#??????????????? | | ??"""" " #? "#??????????????? | | ??"" " #" "#??????????????? | | ?#"" """"""" #" "#??????????????? | | ??## ####### #"" """####???????????? | | ???????????# ????????? | | ??????###### r ????????? | | ??"" """"""" #"" """##"" ??????????? | | ??" " " "" #" "#??????????????? | | ??" " " "" #"" "#??????????????? | | ?#" " "" #?" "#??????????????? | | ?#" "" #???" "#??????????????? | | ?#" #???? "#??????????????? | | ?#"" " #?????"??????????????#? | | ?#""" "" #??????????????????? #? | | ??"" "" #######??#####?????? #? | +----------------------------------------------------+ Best States ------------- Heat Dissipation 25 Energy Generation 10 Energy Capacity 250 Matter Stores 300 Matter Capacity 300 Sight Range 16 Terrain Scan Density 10 ECM Strength 1 Resistance: KI 20 Resistance: TH 20 Resistance: EX 20 Resistance: EM 20 Resistance: I 20 Resistance: S 20 Resistance: P 20 Evasion (%) 40 Recoil Reduction 2 Offensive Hacking 10 Item Schematics ----------------- None Robot Schematics ------------------ None Fabricated ------------ Nothing Repaired ---------- Nothing Studied --------- None Alien Tech Used ----------------- None Achievements -------------- Nice Directions, Buddy Challenges ------------ None Game ------ Seed LightBurstArchive Manual? 0 Play Time 00:11:28 Cumulative 55.7 hours Start 2025.11.11 @ 20:38:13 End 2025.11.11 @ 20:49:43 Sessions 1 Manual Loads 0 Difficulty Adventurer Special Mode None Game No. 32 Rogue 0 Adventurer 24 Explorer 8 Win Type - Total 1 Types 1/0/0/0/0/0/0/0/0/0 Lore% 31 Gallery% 35 Achievement% 28 Wizard Run 0 Options --------- Layout 0 ASCII 1 Keyboard 0 Movement Mouse Keybinds 0 Fullscreen 2 Font 24/Proggy Map View 113x50 Zoom Use 0% Tactical HUD 1 Map Filters NONE Filters NONE Steam 1 RUN: c241a5d6-2d43-490e-9534-85eb82190704